fUST/lending_fUST_20250407
["ID","MTS","AMOUNT","RATE_DAILY","PERIOD"]
[357293263,1743989441202,-500.0,0.00041095,7]
[357293264,1743989441211,-500.0,0.00041095,7]
[357293265,1743989441220,-556.78,0.00041095,7]
[357293266,1743989441230,-529.21470925,0.00041095,7]
[357293267,1743989441239,-500.0,0.00041095,7]
[357293268,1743989441249,-500.0,0.00041095,7]
[357293269,1743989441258,-500.0,0.00041095,7]
[357293270,1743989441267,-500.0,0.00041095,7]
[357293271,1743989441277,-500.0,0.00041095,7]
[357293272,1743989441287,-579.64,0.00041095,7]
[357293273,1743989441296,-1090.99,0.00041095,7]
[357293274,1743989441306,-500.0,0.00041095,7]
[357293275,1743989441316,-151.0,0.00041095,14]
[357293276,1743989441325,-500.0,0.00041095,7]
[357293277,1743989441334,-722.45,0.00041095,7]
[357293278,1743989441344,-2000.0,0.00041095,30]
[357293279,1743989441353,-500.0,0.00041095,7]
[357293280,1743989441363,-500.0,0.00041095,7]
[357293281,1743989441372,-500.0,0.00041095,7]
[357293282,1743989441382,-500.0,0.00041095,7]
[357293283,1743989441392,-500.0,0.00041095,7]
[357293284,1743989441402,-469.41173502,0.00041095,7]
[357293285,1743989441412,-620.88,0.00041095,7]
[357293286,1743989441421,-500.0,0.00041095,7]
[357293287,1743989441430,-609.48,0.00041095,7]
[357293288,1743989441439,-500.0,0.00041095,7]
[357293289,1743989441449,-500.0,0.00041095,7]
[357293290,1743989441458,-151.0,0.00041095,14]
[357293291,1743989441467,-7753.61,0.00041095,7]
[357293292,1743989441477,-638.94,0.00041095,7]
[357293293,1743989441486,-500.0,0.00041095,7]
[357293294,1743989441496,-630.53,0.00041095,7]
[357293295,1743989441506,-500.0,0.00041095,7]
[357293296,1743989441515,-500.0,0.00041095,7]
[357293297,1743989441525,-500.0,0.00041095,7]
[357293298,1743989441534,-151.0,0.00041095,14]
[357293299,1743989441544,-151.0,0.00041095,14]
[357293300,1743989441553,-500.0,0.00041095,7]
[357293301,1743989441562,-183.849904,0.00041095,14]
[357293302,1743989441572,-744.45,0.00041095,7]
[357293303,1743989441583,-500.0,0.00041095,7]
[357293304,1743989441593,-7961.73,0.00041095,7]
[357293305,1743989441603,-500.0,0.00041095,7]
[357293306,1743989441612,-500.0,0.00041095,7]
[357293307,1743989441621,-615.44,0.00041095,7]
[357293308,1743989441631,-500.0,0.00041095,7]
[357293309,1743989441642,-882.8,0.00041095,7]
[357293310,1743989441651,-500.0,0.00041095,7]
[357293311,1743989441660,-500.0,0.00041095,7]
[357293312,1743989441670,-500.0,0.00041095,7]
[357293313,1743989441679,-500.0,0.00041095,7]
[357293314,1743989441689,-500.0,0.00041095,7]
[357293315,1743989441703,-500.0,0.00041095,7]
[357293316,1743989441713,-7279.08,0.00041095,7]
[357293317,1743989441723,-506.41,0.00041095,7]
[357293318,1743989441732,-500.0,0.00041095,7]
[357293319,1743989441741,-500.0,0.00041095,7]
[357293320,1743989441751,-500.0,0.00041095,7]
[357293321,1743989441764,-500.0,0.00041095,7]
[357293322,1743989441773,-2696.62,0.00041095,7]
[357293323,1743989441782,-927.56,0.00041095,7]
[357293324,1743989441793,-567.43429238,0.00041095,7]
[357293325,1743989441803,-642.41,0.00041095,7]
[357293326,1743989441812,-1085.08,0.00041095,7]
[357293327,1743989441822,-8168.05,0.00041095,7]
[357293328,1743989441831,-500.0,0.00041095,7]
[357293329,1743989441842,-1799.23,0.00041095,7]
[357293330,1743989441852,-2204.58,0.00041095,7]
[357293331,1743989441861,-500.0,0.00041095,7]
[357293332,1743989441883,-500.0,0.00041095,7]
[357293333,1743989441897,-500.0,0.00041095,7]
[357293334,1743989441912,-500.0,0.00041095,7]
[357293335,1743989441922,-500.0,0.00041095,7]
[357293336,1743989441931,-540.87,0.00041095,7]
[357293337,1743989441942,-151.0,0.00041095,14]
[357293338,1743989441951,-154.972528,0.00041095,14]
[357293339,1743989441961,-500.0,0.00041095,7]
[357293340,1743989441971,-500.0,0.00041095,7]
[357293341,1743989441980,-500.0,0.00041095,7]
[357293342,1743989441992,-10049.09,0.00041095,7]
[357293343,1743989442002,-500.0,0.00041095,7]
[357293344,1743989442011,-500.0,0.00041095,7]
[357293345,1743989442021,-500.0,0.00041095,7]
[357293346,1743989442030,-500.0,0.00041095,7]
[357293347,1743989442040,-500.0,0.00041095,7]
[357293348,1743989442050,-500.0,0.00041095,7]
[357293349,1743989442060,-500.0,0.00041095,7]
[357293350,1743989442070,-500.0,0.00041095,7]
[357293351,1743989442080,-500.0,0.00041095,7]
[357293352,1743989442089,-620.6,0.00041095,7]
[357293353,1743989442098,-1191.55,0.00041095,7]
[357293354,1743989442107,-500.0,0.00041095,7]
[357293355,1743989442117,-2269.76,0.00041095,7]
[357293356,1743989442126,-2037.59,0.00041095,7]
[357293357,1743989442136,-651.01,0.00041095,7]
[357293358,1743989442150,-500.0,0.00041095,7]
[357293359,1743989442160,-5357.36,0.00041095,7]
[357293360,1743989442169,-500.0,0.00041095,7]
[357293361,1743989442179,-500.0,0.00041095,7]
[357293362,1743989442188,-5692.14,0.00041095,7]
[357293363,1743989442198,-500.0,0.00041095,7]
[357293364,1743989442207,-500.0,0.00041095,7]
[357293365,1743989442217,-500.0,0.00041095,7]
[357293366,1743989442226,-549.11,0.00041095,7]
[357293367,1743989442236,-751.59,0.00041095,7]
[357293368,1743989442245,-500.0,0.00041095,7]
[357293369,1743989442255,-500.0,0.00041095,7]
[357293370,1743989442264,-500.0,0.00041095,7]
[357293371,1743989442274,-510.75775275,0.00041095,7]
[357293372,1743989442283,-298.29337725,0.00041095,7]
[357293373,1743989442293,-500.0,0.00041095,7]
[357293374,1743989442302,-500.0,0.00041095,7]
[357293375,1743989442312,-500.0,0.00041095,7]
[357293376,1743989442322,-2460.41,0.00041095,7]
[357293377,1743989442332,-500.0,0.00041095,7]
[357293378,1743989442341,-500.0,0.00041095,7]
[357293379,1743989442351,-500.0,0.00041095,7]
[357293380,1743989442360,-3256.76,0.00041095,2]
[357293381,1743989442370,-501.14667016,0.00041095,7]
[357293382,1743989442380,-500.0,0.00041095,7]
[357293383,1743989442394,-500.0,0.00041095,7]
[357293384,1743989442404,-580.61,0.00041095,7]
[357293385,1743989442413,-500.0,0.00041095,7]
[357293386,1743989442423,-500.0,0.00041095,7]
[357293387,1743989442432,-500.0,0.00041095,7]
[357293388,1743989442443,-617.76,0.00041095,7]
[357293389,1743989442453,-500.0,0.00041095,7]
[357293390,1743989442463,-500.0,0.00041095,7]
[357293391,1743989442473,-500.0,0.00041095,7]
[357293392,1743989442483,-500.0,0.00041095,7]
[357293393,1743989442492,-500.0,0.00041095,7]
[357293394,1743989442501,-500.0,0.00041095,7]
[357293395,1743989442512,-500.0,0.00041095,7]
[357293396,1743989442522,-500.0,0.00041095,7]
[357293397,1743989442531,-1261.82,0.00041095,7]
[357293398,1743989442541,-500.0,0.00041095,7]
[357293399,1743989442550,-2504.83,0.00041095,7]
[357293401,1743989442560,-501.80573661,0.00041095,7]
[357293402,1743989442570,-621.19,0.00041095,7]
[357293403,1743989442579,-1462.56,0.00041095,7]
[357293404,1743989442589,-1478.15,0.00041095,7]
[357293405,1743989442598,-4073.55,0.00041095,7]
[357293406,1743989442607,-4073.55,0.00041095,7]
[357293408,1743989442615,-4073.55,0.00041095,7]
[357293410,1743989442625,-4073.55,0.00041095,7]
[357293413,1743989442634,-4073.55,0.00041095,7]
[357293417,1743989442647,-4073.55,0.00041095,7]
[357293420,1743989442657,-4073.55,0.00041095,7]
[357293422,1743989442667,-332.87654373,0.00041095,7]
[357293425,1743989442676,-4073.55,0.00041095,7]
[357293427,1743989442686,-4073.55,0.00041095,7]
[357293429,1743989442696,-4073.55,0.00041095,7]
[357293431,1743989442706,-4073.55,0.00041095,7]
[357293434,1743989442716,-4073.55,0.00041095,7]
[357293437,1743989442725,-4073.55,0.00041095,7]
[357293439,1743989442735,-1235.0,0.00041095,7]
[357293441,1743989442745,-4073.55,0.00041095,7]
[357293443,1743989442754,-4073.55,0.00041095,7]
[357293445,1743989442764,-500.0,0.00041095,7]
[357293447,1743989442773,-4073.55,0.00041095,7]
[357293449,1743989442783,-4073.55,0.00041095,7]
[357293460,1743989442948,-7236.69,0.00041095,7]
[357293461,1743989442959,-4073.55,0.00041095,7]
[357293462,1743989442970,-4073.55,0.00041095,7]
[357293463,1743989442980,-4073.55,0.00041095,7]
[357293464,1743989442990,-4073.55,0.00041095,7]
[357293465,1743989443000,-500.0,0.00041095,7]
[357293466,1743989443010,-4073.55,0.00041095,7]
[357293467,1743989443019,-4073.55,0.00041095,7]
[357293468,1743989443029,-1805.26,0.00041095,7]
[357293469,1743989443038,-4073.71,0.00041095,7]
[357293470,1743989443048,-416.61085674,0.00041095,7]
[357293471,1743989443057,-500.0,0.00041095,7]
[357293472,1743989443067,-541.18,0.00041095,7]
[357293474,1743989443076,-4515.46,0.00041095,7]
[357293476,1743989443085,-500.0,0.00041095,7]
[357293477,1743989443095,-505.84,0.00041095,7]
[357293479,1743989443104,-500.0,0.00041095,7]
[357293481,1743989443113,-197.979384,0.00041095,14]
[357293482,1743989443123,-500.0,0.00041095,7]
[357293483,1743989443132,-2414.61,0.00041095,7]
[357293484,1743989443144,-500.0,0.00041095,7]
[357293485,1743989443154,-500.0,0.00041095,7]
[357293486,1743989443164,-670.21,0.00041095,7]
[357293487,1743989443173,-500.0,0.00041095,7]
[357293488,1743989443183,-500.0,0.00041095,7]
[357293489,1743989443192,-500.0,0.00041095,7]
[357293490,1743989443201,-500.0,0.00041095,7]
[357293491,1743989443210,-500.0,0.00041095,7]
[357293492,1743989443219,-500.0,0.00041095,7]
[357293493,1743989443229,-527.17142732,0.00041095,7]
[357293494,1743989443238,-500.0,0.00041095,7]
[357293495,1743989443247,-500.0,0.00041095,7]
[357293496,1743989443256,-500.0,0.00041095,7]
[357293497,1743989443265,-500.0,0.00041095,7]
[357293498,1743989443274,-500.0,0.00041095,7]
[357293499,1743989443283,-3273.66,0.00041095,7]
[357293500,1743989443293,-500.0,0.00041095,7]
[357293501,1743989443302,-500.0,0.00041095,7]
[357293502,1743989443311,-500.0,0.00041095,7]
[357293503,1743989443320,-1118.94714,0.00041095,120]
[357293504,1743989443330,-500.0,0.00041095,7]
[357293505,1743989443339,-510.76,0.00041095,7]
[357293506,1743989443348,-500.0,0.00041095,7]
[357293507,1743989443357,-1000.0,0.00041095,90]
[357293508,1743989443366,-1000.0,0.00041095,7]
[357293509,1743989443375,-500.0,0.00041095,7]
[357293510,1743989443386,-500.0,0.00041095,7]
[357293511,1743989443397,-500.0,0.00041095,7]
[357293512,1743989443407,-500.0,0.00041095,7]
[357293513,1743989443416,-500.0,0.00041095,7]
[357293514,1743989443426,-500.0,0.00041095,7]
[357293515,1743989443435,-500.0,0.00041095,7]
[357293517,1743989443445,-508.68092052,0.00041095,120]
[357293519,1743989443454,-500.0,0.00041095,7]
[357293521,1743989443464,-500.0,0.00041095,7]
[357293523,1743989443474,-11743.69,0.00041095,7]
[357293526,1743989443484,-151.165071,0.00041095,14]
[357293529,1743989443493,-1317.71,0.00041095,7]
[357293531,1743989443503,-1495.58,0.00041095,7]
[357293533,1743989443513,-562.43,0.00041095,7]
[357293534,1743989443523,-500.0,0.00041095,7]
[357293535,1743989443533,-9473.68,0.00041095,7]
[357293536,1743989443542,-1118.31,0.00041095,7]
[357293537,1743989443552,-500.0,0.00041095,7]
[357293538,1743989443562,-508.09,0.00041095,7]
[357293539,1743989443572,-500.0,0.00041095,7]
[357293540,1743989443582,-500.0,0.00041095,7]
[357293541,1743989443592,-500.0,0.00041095,7]
[357293542,1743989443602,-502.13393564,0.00041095,7]
[357293543,1743989443611,-516.57844123,0.00041095,7]
[357293544,1743989443621,-500.0,0.00041095,7]
[357293545,1743989443631,-500.0,0.00041095,7]
[357293546,1743989443642,-500.0,0.00041095,7]
[357293547,1743989443651,-500.0,0.00041095,7]
[357293548,1743989443662,-500.0,0.00041095,7]
[357293549,1743989443672,-500.0,0.00041096,120]
[357293550,1743989443681,-160.0,0.000411,3]
[357293551,1743989443691,-419.12848707,0.000411,3]
[357293552,1743989443701,-160.0,0.00041187,5]
[357293553,1743989443711,-1000.0,0.00041211,120]
[357293554,1743989443721,-158.27,0.000413,31]
[357293555,1743989443732,-158.27,0.000413,31]
[357293556,1743989443741,-500.0,0.00041369,7]
[357293557,1743989443751,-500.0,0.00041369,7]
[357293558,1743989443760,-500.0,0.00041369,7]
[357293559,1743989443770,-500.0,0.00041369,7]
[357293560,1743989443780,-500.0,0.00041369,7]
[357293561,1743989443789,-500.0,0.00041369,7]
[357293562,1743989443799,-500.0,0.00041369,7]
[357293563,1743989443809,-500.0,0.00041369,7]
[357293564,1743989443818,-500.0,0.00041369,7]
[357293565,1743989443827,-500.0,0.00041369,7]
[357293566,1743989443837,-500.0,0.00041369,7]
[357293567,1743989443846,-500.0,0.00041369,7]
[357293568,1743989443855,-500.0,0.00041369,7]
[357293569,1743989443865,-500.0,0.00041369,7]
[357293570,1743989443890,-500.0,0.00041369,7]
[357293571,1743989443899,-500.0,0.00041369,7]
[357293572,1743989443910,-500.0,0.00041369,7]
[357293573,1743989443927,-247.05409582,0.00041369,7]
[357293574,1743989443936,-500.0,0.00041369,7]
[357293575,1743989443945,-500.0,0.00041369,7]
[357293576,1743989443955,-500.0,0.00041369,7]
[357293577,1743989443965,-151.0,0.00041369,120]
[357293578,1743989443974,-500.0,0.00041369,7]
[357293579,1743989443984,-500.0,0.00041369,7]
[357293580,1743989443995,-508.7147776,0.00041369,7]
[357293581,1743989444004,-500.0,0.00041369,7]
[357293582,1743989444014,-500.0,0.00041369,7]
[357293583,1743989444023,-500.0,0.00041369,7]
[357293584,1743989444033,-502.96328756,0.00041369,7]
[357293585,1743989444043,-500.0,0.00041369,7]
[357293586,1743989444053,-500.0,0.00041369,7]
[357293587,1743989444063,-151.0,0.00041369,120]
[357293588,1743989444072,-151.0,0.00041369,120]
[357293589,1743989444082,-151.0,0.00041369,120]
[357293590,1743989444091,-151.0,0.00041369,120]
[357293591,1743989444101,-151.0,0.00041369,120]
[357293592,1743989444111,-500.0,0.00041369,7]
[357293593,1743989444120,-500.0,0.00041369,7]
[357293594,1743989444130,-500.0,0.00041369,7]
[357293595,1743989444142,-500.0,0.00041369,7]
[357293596,1743989444151,-500.0,0.00041369,2]
[357293597,1743989444161,-186.39949171,0.00041369,7]
[357293598,1743989444171,-602.55,0.00041369,7]
[357293599,1743989444180,-500.0,0.00041369,7]
[357293600,1743989444190,-1145.87,0.00041369,7]
[357293601,1743989444199,-500.0,0.00041369,7]
[357293602,1743989444209,-500.0,0.00041369,7]
[357293603,1743989444218,-500.0,0.00041369,7]
[357293604,1743989444228,-500.0,0.00041369,7]
[357293605,1743989444238,-500.0,0.00041369,7]
[357293606,1743989444248,-500.0,0.00041369,7]
[357293607,1743989444258,-500.0,0.00041369,7]
[357293608,1743989444268,-500.0,0.00041369,7]
[357293609,1743989444277,-1000.0,0.00041369,7]
[357293610,1743989444287,-500.0,0.00041369,7]
[357293611,1743989444296,-300.0,0.00041369,30]
[357293612,1743989444306,-500.0,0.00041369,7]
[357293613,1743989444315,-500.0,0.00041369,7]
[357293614,1743989444325,-500.0,0.00041369,7]
[357293615,1743989444334,-827.67,0.00041369,7]
[357293616,1743989444344,-500.0,0.00041369,7]
[357293617,1743989444357,-500.0,0.00041369,7]
[357293618,1743989444375,-505.70032485,0.00041369,7]
[357293619,1743989444392,-594.90611631,0.00041369,7]
[357293620,1743989444404,-500.0,0.00041369,7]
[357293621,1743989444419,-500.0,0.00041369,7]
[357293622,1743989444435,-500.0,0.00041369,7]
[357293623,1743989444450,-507.28718606,0.00041369,7]
[357293624,1743989444465,-500.0,0.00041369,7]
[357293625,1743989444482,-500.0,0.00041369,7]
[357293626,1743989444497,-500.0,0.00041369,7]
[357293627,1743989444511,-600.43,0.00041369,7]
[357293628,1743989444525,-500.0,0.00041369,7]
[357293629,1743989444541,-500.0,0.00041369,7]
[357293630,1743989444557,-527.21315897,0.00041369,7]
[357293631,1743989444569,-573.25,0.00041369,7]
[357293632,1743989444583,-500.0,0.00041369,7]
[357293633,1743989444597,-518.90366815,0.00041369,7]
[357293634,1743989444612,-500.0,0.00041369,7]
[357293635,1743989444629,-500.0,0.00041369,7]
[357293636,1743989444645,-500.0,0.00041369,7]
[357293637,1743989444661,-500.0,0.00041369,7]
[357293638,1743989444673,-500.0,0.00041369,7]
[357293639,1743989444684,-500.0,0.00041369,7]
[357293640,1743989444698,-533.2670404,0.00041369,7]
[357293641,1743989444715,-500.0,0.00041369,7]
[357293642,1743989444727,-500.0,0.00041369,7]
[357293643,1743989444739,-171.32958677,0.00041369,7]
[357293644,1743989444754,-505.46306142,0.00041369,7]
[357293645,1743989444768,-500.0,0.00041369,7]
[357293646,1743989444781,-502.09421846,0.00041369,7]
[357293647,1743989444793,-500.0,0.00041369,7]
[357293648,1743989444806,-578.19,0.00041369,7]
[357293649,1743989444819,-500.0,0.00041369,7]
[357293650,1743989444832,-500.0,0.00041369,7]
[357293651,1743989444844,-500.0,0.00041369,7]
[357293652,1743989444857,-500.0,0.00041369,7]
[357293653,1743989444871,-514.40234376,0.00041369,7]
[357293654,1743989444884,-500.0,0.00041369,7]
[357293655,1743989444906,-1000.0,0.00041369,7]
[357293656,1743989444919,-200.0,0.00041369,7]
[357293657,1743989444932,-500.0,0.00041369,7]
[357293658,1743989444946,-500.0,0.00041369,7]
[357293659,1743989444959,-500.0,0.00041369,7]
[357293660,1743989444972,-500.0,0.00041369,7]
[357293661,1743989444986,-500.0,0.00041369,7]
[357293662,1743989444999,-500.0,0.00041369,7]
[357293663,1743989445013,-500.0,0.00041369,7]
[357293664,1743989445027,-500.0,0.00041369,7]
[357293665,1743989445040,-500.0,0.00041369,7]
[357293666,1743989445054,-500.0,0.00041369,7]
[357293667,1743989445066,-500.0,0.00041369,7]
[357293668,1743989445080,-500.0,0.00041369,7]
[357293669,1743989445093,-570.15,0.00041369,7]
[357293670,1743989445107,-500.0,0.00041369,7]
[357293671,1743989445123,-500.0,0.00041369,7]
[357293672,1743989445135,-500.0,0.00041369,7]
[357293673,1743989445153,-506.00857575,0.00041369,7]
[357293674,1743989445166,-500.0,0.00041369,7]
[357293675,1743989445181,-500.0,0.00041369,7]
[357293676,1743989445193,-500.0,0.00041369,7]
[357293677,1743989445206,-500.0,0.00041369,7]
[357293678,1743989445219,-500.0,0.00041369,7]
[357293679,1743989445233,-500.0,0.00041369,7]
[357293680,1743989445246,-500.0,0.00041369,7]
[357293681,1743989445259,-500.0,0.00041369,7]
[357293682,1743989445273,-500.0,0.00041369,7]
[357293683,1743989445286,-500.0,0.00041369,7]
[357293684,1743989445298,-670.12,0.00041369,7]
[357293685,1743989445311,-500.0,0.00041369,7]
[357293686,1743989445323,-500.0,0.00041369,7]
[357293687,1743989445336,-500.0,0.00041369,7]
[357293688,1743989445348,-500.0,0.00041369,7]
[357293689,1743989445360,-948.38,0.00041369,7]
[357293690,1743989445373,-500.0,0.00041369,7]
[357293691,1743989445385,-649.67,0.00041369,7]
[357293692,1743989445400,-500.0,0.00041369,7]
[357293693,1743989445413,-500.0,0.00041369,7]
[357293694,1743989445426,-500.0,0.00041369,7]
[357293695,1743989445439,-500.0,0.00041369,7]
[357293696,1743989445452,-500.0,0.00041369,7]
[357293697,1743989445465,-500.0,0.00041369,7]
[357293698,1743989445478,-500.0,0.00041369,3]
[357293699,1743989445491,-500.0,0.00041369,7]
[357293700,1743989445504,-500.0,0.00041369,7]
[357293701,1743989445517,-204.62754865,0.00041369,7]
[357293702,1743989445529,-694.1,0.00041369,7]
[357293703,1743989445542,-500.0,0.00041369,7]
[357293704,1743989445555,-500.0,0.00041369,7]
[357293705,1743989445568,-572.96545285,0.00041369,7]
[357293706,1743989445580,-500.0,0.00041369,7]
[357293707,1743989445593,-500.0,0.00041369,7]
[357293708,1743989445605,-500.0,0.00041369,7]
[357293709,1743989445617,-500.0,0.00041369,7]
[357293710,1743989445630,-629.95,0.00041369,7]
[357293711,1743989445645,-614.4,0.00041369,7]
[357293712,1743989445658,-523.40142018,0.00041369,7]
[357293713,1743989445670,-500.0,0.00041369,7]
[357293714,1743989445683,-500.0,0.00041369,7]
[357293715,1743989445695,-500.0,0.00041369,7]
[357293716,1743989445708,-500.0,0.00041369,7]
[357293717,1743989445720,-500.0,0.00041369,7]
[357293718,1743989445733,-500.0,0.00041369,7]
[357293719,1743989445745,-500.0,0.00041369,7]
[357293720,1743989445758,-500.0,0.00041369,7]
[357293721,1743989445770,-500.0,0.00041369,7]
[357293722,1743989445783,-326.33587579,0.00041369,7]
[357293723,1743989445796,-500.0,0.00041369,7]
[357293724,1743989445809,-500.0,0.00041369,7]
[357293725,1743989445822,-500.0,0.00041369,7]
[357293727,1743989445835,-500.0,0.00041369,7]
[357293729,1743989445848,-500.0,0.00041369,7]
[357293730,1743989445863,-447.68124245,0.00041369,7]
[357293731,1743989445877,-500.0,0.00041369,7]
[357293732,1743989445895,-500.0,0.00041369,7]
[357293733,1743989445911,-565.64940145,0.00041369,7]
[357293734,1743989445926,-500.0,0.00041369,7]
[357293735,1743989445941,-500.0,0.00041369,7]
[357293736,1743989445955,-503.37515087,0.00041369,7]
[357293737,1743989445969,-500.0,0.00041369,7]
[357293739,1743989445984,-500.0,0.00041369,7]
[357293740,1743989445999,-500.0,0.00041369,7]
[357293741,1743989446012,-500.0,0.00041369,7]
[357293742,1743989446025,-500.0,0.00041369,7]
[357293743,1743989446039,-500.0,0.00041369,7]
[357293744,1743989446051,-500.0,0.00041369,7]
[357293745,1743989446064,-500.0,0.00041369,7]
[357293746,1743989446075,-606.9,0.00041369,7]
[357293747,1743989446085,-500.0,0.00041369,7]
[357293748,1743989446094,-500.0,0.00041369,7]
[357293749,1743989446104,-1067.29,0.00041369,7]
[357293750,1743989446113,-500.0,0.00041369,7]
[357293751,1743989446123,-500.0,0.00041369,7]
[357293752,1743989446133,-766.12,0.00041369,7]
[357293753,1743989446146,-500.0,0.00041369,7]
[357293754,1743989446155,-500.0,0.00041369,7]
[357293755,1743989446165,-500.0,0.00041369,7]
[357293756,1743989446175,-500.0,0.00041369,7]
[357293758,1743989446185,-500.0,0.00041369,7]
[357293759,1743989446195,-500.0,0.00041369,7]
[357293761,1743989446205,-210.40750591,0.00041369,7]
[357293764,1743989446215,-500.0,0.00041369,7]
[357293765,1743989446516,-961.28,0.00041369,7]
[357293766,1743989446535,-500.0,0.00041369,7]
[357293767,1743989446545,-500.0,0.00041369,7]
[357293768,1743989446555,-500.0,0.00041369,7]
[357293769,1743989446564,-500.0,0.00041369,7]
[357293770,1743989446573,-500.0,0.00041369,7]
[357293771,1743989446583,-635.83824391,0.00041369,7]
[357293772,1743989446593,-500.0,0.00041369,7]
[357293773,1743989446602,-500.0,0.00041369,7]
[357293774,1743989446611,-699.14,0.00041369,7]
[357293775,1743989446621,-429.70436338,0.00041369,7]
[357293776,1743989446631,-500.0,0.00041369,7]
[357293777,1743989446642,-500.0,0.00041369,7]
[357293778,1743989446652,-582.81,0.00041369,7]
[357293779,1743989446661,-500.0,0.00041369,7]
[357293780,1743989446670,-500.0,0.00041369,7]
[357293781,1743989446679,-652.42,0.00041369,7]
[357293782,1743989446688,-914.3,0.00041369,7]
[357293783,1743989446698,-500.0,0.00041369,7]
[357293784,1743989446708,-736.58,0.00041369,7]
[357293785,1743989446718,-500.0,0.00041369,7]
[357293786,1743989446727,-500.0,0.00041369,7]
[357293787,1743989446738,-500.0,0.00041369,7]
[357293788,1743989446748,-500.0,0.00041369,7]
[357293789,1743989446758,-500.0,0.00041369,7]
[357293790,1743989446776,-1450.92,0.00041369,7]
[357293791,1743989446788,-500.0,0.00041369,7]
[357293792,1743989446797,-500.0,0.00041369,7]
[357293793,1743989446806,-500.0,0.00041369,7]
[357293794,1743989446816,-500.0,0.00041369,7]
[357293795,1743989446826,-500.0,0.00041369,7]
[357293796,1743989446835,-500.0,0.00041369,7]
[357293797,1743989446844,-500.0,0.00041369,7]
[357293798,1743989446854,-500.0,0.00041369,7]
[357293799,1743989446864,-548.25448655,0.00041369,7]
[357293800,1743989446874,-500.0,0.00041369,7]
[357293801,1743989446887,-161.66808758,0.00041369,7]
[357293802,1743989446902,-500.0,0.00041369,7]
[357293803,1743989446913,-508.75460743,0.00041369,7]
[357293804,1743989446923,-500.0,0.00041369,7]
[357293805,1743989446932,-500.0,0.00041369,7]
[357293806,1743989446942,-500.0,0.00041369,7]
[357293807,1743989446951,-524.14757663,0.00041369,7]
[357293808,1743989446960,-500.0,0.00041369,7]
[357293809,1743989446969,-500.0,0.00041369,7]
[357293810,1743989446978,-500.0,0.00041369,7]
[357293811,1743989446988,-500.0,0.00041369,7]
[357293812,1743989447000,-500.0,0.00041369,7]
[357293813,1743989447009,-500.0,0.00041369,7]
[357293814,1743989447019,-500.0,0.00041369,7]
[357293815,1743989447029,-529.37943619,0.00041369,7]
[357293816,1743989447038,-1392.48,0.00041369,7]
[357293817,1743989447048,-500.0,0.00041369,7]
[357293818,1743989447059,-500.0,0.00041369,7]
[357293819,1743989447069,-500.0,0.00041369,7]